[Event "*** MasterClass Titled Tuesday Blitz"]
[Site "Chess.com"]
[Date "2017.08.01"]
[Round "5"]
[White "viggi38"]
[Black "kleinebeer98"]
[Result "1/2-1/2"]
[WhiteElo "2392"]
[BlackElo "2456"]
[TimeControl "180+2"]
[EndTime "14:05:53 PDT"]
[Termination "Game drawn by repetition"]

1. c4 {[%clk 0:03:01.9]} 1... c5 {[%clk 0:03:00.9]} 2. Nc3 {[%clk 0:03:02.6]}
2... Nc6 {[%clk 0:03:01.9]} 3. g3 {[%clk 0:03:03.7]} 3... g6 {[%clk 0:03:03.5]}
4. Bg2 {[%clk 0:03:03]} 4... Bg7 {[%clk 0:03:04.8]} 5. Nf3 {[%clk 0:03:03.4]}
5... e6 {[%clk 0:03:05.7]} 6. d3 {[%clk 0:03:01.3]} 6... Nge7 {[%clk 0:03:07]}
7. Bg5 {[%clk 0:03:01.2]} 7... h6 {[%clk 0:03:07.3]} 8. Bd2 {[%clk 0:03:01.9]}
8... d5 {[%clk 0:03:06.7]} 9. O-O {[%clk 0:03:01.2]} 9... b6 {[%clk 0:03:02.8]}
10. Qc1 {[%clk 0:02:59.2]} 10... Bb7 {[%clk 0:03:02.7]} 11. a3 {[%clk
0:02:55.2]} 11... dxc4 {[%clk 0:02:55.3]} 12. dxc4 {[%clk 0:02:54.6]} 12... Na5
{[%clk 0:02:56.8]} 13. Qc2 {[%clk 0:02:47.8]} 13... O-O {[%clk 0:02:46.9]} 14.
b3 {[%clk 0:02:32.8]} 14... Nf5 {[%clk 0:02:40.9]} 15. Rad1 {[%clk 0:02:30.8]}
15... Qe7 {[%clk 0:02:34.5]} 16. e3 {[%clk 0:02:16.5]} 16... Rfd8 {[%clk
0:02:26.2]} 17. Ne2 {[%clk 0:02:03.9]} 17... Nc6 {[%clk 0:02:15.9]} 18. Bc3
{[%clk 0:02:03.7]} 18... Qf8 {[%clk 0:01:49.2]} 19. Qb2 {[%clk 0:01:53]} 19...
Bxc3 {[%clk 0:01:48.7]} 20. Qxc3 {[%clk 0:01:47.4]} 20... Rxd1 {[%clk
0:01:41.2]} 21. Rxd1 {[%clk 0:01:46.3]} 21... Rd8 {[%clk 0:01:43.1]} 22. Qc2
{[%clk 0:01:40.9]} 22... Na5 {[%clk 0:01:40.1]} 23. g4 {[%clk 0:01:32.9]} 23...
Ne7 {[%clk 0:01:09.3]} 24. Rxd8 {[%clk 0:01:24.1]} 24... Qxd8 {[%clk 0:01:11.2]}
25. b4 {[%clk 0:01:25.6]} 25... cxb4 {[%clk 0:01:03.9]} 26. axb4 {[%clk
0:01:27.5]} 26... Nac6 {[%clk 0:01:05.8]} 27. b5 {[%clk 0:01:16]} 27... Na5
{[%clk 0:01:02.5]} 28. Ned4 {[%clk 0:01:07.9]} 28... Qc7 {[%clk 0:00:51.6]} 29.
Nd2 {[%clk 0:01:03.5]} 29... Bxg2 {[%clk 0:00:50.6]} 30. Kxg2 {[%clk 0:01:05.4]}
30... e5 {[%clk 0:00:48.7]} 31. N4b3 {[%clk 0:01:02.7]} 31... Nxb3 {[%clk
0:00:44.1]} 32. Nxb3 {[%clk 0:01:04.6]} 32... Qb7+ {[%clk 0:00:42.6]} 33. f3
{[%clk 0:00:53.8]} 33... a6 {[%clk 0:00:43.5]} 34. Qd3 {[%clk 0:00:52.4]} 34...
axb5 {[%clk 0:00:42]} 35. cxb5 {[%clk 0:00:52.2]} 35... Nd5 {[%clk 0:00:43]} 36.
Kf2 {[%clk 0:00:48.4]} 36... Qa8 {[%clk 0:00:39.9]} 37. Qc2 {[%clk 0:00:44.7]}
37... Qd8 {[%clk 0:00:28]} 38. Ke2 {[%clk 0:00:37.3]} 38... Qh4 {[%clk
0:00:26.5]} 39. Qc4 {[%clk 0:00:30.2]} 39... Qxh2+ {[%clk 0:00:25.7]} 40. Kd3
{[%clk 0:00:31.2]} 40... Nf6 {[%clk 0:00:11]} 41. Qc6 {[%clk 0:00:25.1]} 41...
e4+ {[%clk 0:00:11.5]} 42. fxe4 {[%clk 0:00:25.1]} 42... Qe5 {[%clk 0:00:11.8]}
43. Nd4 {[%clk 0:00:21.7]} 43... Nxg4 {[%clk 0:00:12.5]} 44. Qxb6 {[%clk
0:00:21.6]} 44... Nf2+ {[%clk 0:00:13.1]} 45. Ke2 {[%clk 0:00:20.9]} 45... Nxe4
{[%clk 0:00:13.7]} 46. Qd8+ {[%clk 0:00:21.8]} 46... Kg7 {[%clk 0:00:14.2]} 47.
b6 {[%clk 0:00:23.2]} 47... Qh5+ {[%clk 0:00:12.3]} 48. Kd3 {[%clk 0:00:23.3]}
48... Nc5+ {[%clk 0:00:12.6]} 49. Kc4 {[%clk 0:00:22.1]} 49... Na6 {[%clk
0:00:04.5]} 50. Qd5 {[%clk 0:00:17.9]} 50... Qd1 {[%clk 0:00:02.9]} 51. Qe5+
{[%clk 0:00:18.3]} 51... Kh7 {[%clk 0:00:03.5]} 52. b7 {[%clk 0:00:15.7]} 52...
Qc1+ {[%clk 0:00:03]} 53. Kd5 {[%clk 0:00:16.5]} 53... Qc5+ {[%clk 0:00:04]} 54.
Ke4 {[%clk 0:00:17.2]} 54... Qxe5+ {[%clk 0:00:05]} 55. Kxe5 {[%clk 0:00:18.3]}
55... h5 {[%clk 0:00:06.4]} 56. Kd6 {[%clk 0:00:18.9]} 56... h4 {[%clk
0:00:06.9]} 57. Kc6 {[%clk 0:00:18]} 57... h3 {[%clk 0:00:07.4]} 58. Nf3 {[%clk
0:00:19.2]} 58... Kh6 {[%clk 0:00:07.6]} 59. Kb6 {[%clk 0:00:20.3]} 59... Nb8
{[%clk 0:00:09]} 60. Kc7 {[%clk 0:00:21.4]} 60... Na6+ {[%clk 0:00:10.4]} 61.
Kb6 {[%clk 0:00:22.5]} 61... Nb8 {[%clk 0:00:11]} 62. Kc7 {[%clk 0:00:20.1]}
62... Na6+ {[%clk 0:00:12]} 63. Kb6 {[%clk 0:00:21.1]} 63... Nb8 {[%clk
0:00:13.2]} 64. Ka7 {[%clk 0:00:22.5]} 64... Nc6+ {[%clk 0:00:14.3]} 65. Kb6
{[%clk 0:00:22.5]} 65... Nb8 {[%clk 0:00:15.4]} 66. Kc7 {[%clk 0:00:23.4]} 66...
Na6+ {[%clk 0:00:16.1]} 67. Kb6 {[%clk 0:00:24.3]} 67... Nb8 {[%clk 0:00:17.4]}
1/2-1/2

[Event "*** MasterClass Titled Tuesday Blitz"]
[Site "Chess.com"]
[Date "2017.08.01"]
[Round "5"]
[White "KNVB"]
[Black "MITerryble"]
[Result "0-1"]
[WhiteElo "2512"]
[BlackElo "2686"]
[TimeControl "180+2"]
[EndTime "14:07:59 PDT"]
[Termination "MITerryble won by checkmate"]

1. d4 {[%clk 0:03:00.8]} 1... e6 {[%clk 0:02:58.8]} 2. c4 {[%clk 0:03:00.3]}
2... Bb4+ {[%clk 0:02:57.7]} 3. Bd2 {[%clk 0:03:00]} 3... Qe7 {[%clk 0:02:57.1]}
4. Nf3 {[%clk 0:02:58.1]} 4... Nf6 {[%clk 0:02:58.1]} 5. Nc3 {[%clk 0:02:57.8]}
5... O-O {[%clk 0:02:57.8]} 6. g3 {[%clk 0:02:54]} 6... d6 {[%clk 0:02:56.7]} 7.
Bg2 {[%clk 0:02:50.8]} 7... e5 {[%clk 0:02:57.7]} 8. O-O {[%clk 0:02:38.8]} 8...
Re8 {[%clk 0:02:29.7]} 9. Re1 {[%clk 0:02:21.1]} 9... Bg4 {[%clk 0:02:19.4]} 10.
dxe5 {[%clk 0:02:01.7]} 10... dxe5 {[%clk 0:02:20.1]} 11. Nd5 {[%clk 0:02:03.6]}
11... Nxd5 {[%clk 0:02:20.8]} 12. cxd5 {[%clk 0:02:05.5]} 12... Bd6 {[%clk
0:02:16.5]} 13. h3 {[%clk 0:01:53.8]} 13... Bd7 {[%clk 0:02:13.7]} 14. e4 {[%clk
0:01:48.1]} 14... Na6 {[%clk 0:02:14.6]} 15. Bc3 {[%clk 0:01:48.7]} 15... Nc5
{[%clk 0:02:15.1]} 16. b3 {[%clk 0:01:49.4]} 16... a5 {[%clk 0:02:15.7]} 17. Kh2
{[%clk 0:01:46.8]} 17... Bb5 {[%clk 0:02:03.7]} 18. Qd2 {[%clk 0:01:32]} 18...
b6 {[%clk 0:02:02.5]} 19. Rab1 {[%clk 0:01:18]} 19... Bd3 {[%clk 0:02:02]} 20.
Nh4 {[%clk 0:01:18.4]} 20... Bxb1 {[%clk 0:02:00.7]} 21. Nf5 {[%clk 0:01:17.9]}
21... Qf8 {[%clk 0:01:51.3]} 22. Rxb1 {[%clk 0:01:18]} 22... g6 {[%clk
0:01:52.3]} 23. Nh6+ {[%clk 0:01:17.8]} 23... Kh8 {[%clk 0:01:45.9]} 24. Re1
{[%clk 0:01:12.8]} 24... Qg7 {[%clk 0:01:42.9]} 25. Ng4 {[%clk 0:00:54.3]} 25...
h5 {[%clk 0:01:32.9]} 26. Ne3 {[%clk 0:00:55.6]} 26... Kh7 {[%clk 0:01:34.2]}
27. Qc2 {[%clk 0:00:54.5]} 27... Qh6 {[%clk 0:01:15.2]} 28. h4 {[%clk
0:00:52.5]} 28... Rf8 {[%clk 0:01:08.5]} 29. Bf1 {[%clk 0:00:42.4]} 29... Kg8
{[%clk 0:01:02.6]} 30. Bd2 {[%clk 0:00:31.1]} 30... Qh7 {[%clk 0:01:01.2]} 31.
Bh3 {[%clk 0:00:28.2]} 31... Rae8 {[%clk 0:00:59.3]} 32. Kg2 {[%clk 0:00:20.4]}
32... Qg7 {[%clk 0:00:51.6]} 33. Bc3 {[%clk 0:00:17.6]} 33... f6 {[%clk
0:00:52]} 34. f3 {[%clk 0:00:17.3]} 34... Kh7 {[%clk 0:00:51.9]} 35. Kh2 {[%clk
0:00:13.1]} 35... Qe7 {[%clk 0:00:50.9]} 36. Re2 {[%clk 0:00:13.6]} 36... Ra8
{[%clk 0:00:51.3]} 37. Rf2 {[%clk 0:00:11.8]} 37... b5 {[%clk 0:00:51.2]} 38.
Bd2 {[%clk 0:00:06.5]} 38... Na6 {[%clk 0:00:45.9]} 39. Bxa5 {[%clk 0:00:05.5]}
39... Bc5 {[%clk 0:00:46.9]} 40. Re2 {[%clk 0:00:04.7]} 40... Nb4 {[%clk
0:00:36.3]} 41. Bxb4 {[%clk 0:00:06]} 41... Bxb4 {[%clk 0:00:38.2]} 42. Be6
{[%clk 0:00:03.2]} 42... Qc5 {[%clk 0:00:36.3]} 43. Qd1 {[%clk 0:00:03.7]} 43...
Qd4 {[%clk 0:00:31.6]} 44. Qf1 {[%clk 0:00:04]} 44... Bc5 {[%clk 0:00:32.1]} 45.
g4 {[%clk 0:00:03.8]} 45... Qd3 {[%clk 0:00:29.3]} 46. Nc2 {[%clk 0:00:02.9]}
46... Rxa2 {[%clk 0:00:24.8]} 47. Qg2 {[%clk 0:00:04.5]} 47... hxg4 {[%clk
0:00:24.4]} 48. fxg4 {[%clk 0:00:04.3]} 48... Kg7 {[%clk 0:00:19.7]} 49. h5
{[%clk 0:00:03.7]} 49... Rh8 {[%clk 0:00:20.4]} 50. b4 {[%clk 0:00:04]} 50...
Bb6 {[%clk 0:00:17.7]} 51. d6 {[%clk 0:00:05.2]} 51... Rxc2 {[%clk 0:00:16]} 52.
Rxc2 {[%clk 0:00:05.3]} 52... Qxd6 {[%clk 0:00:17.9]} 53. Bd5 {[%clk 0:00:06.4]}
53... Qxb4 {[%clk 0:00:18.1]} 54. Qf3 {[%clk 0:00:05.2]} 54... Qe1 {[%clk
0:00:16.8]} 55. Rg2 {[%clk 0:00:06.1]} 55... Qh4+ {[%clk 0:00:16.7]} 56. Qh3
{[%clk 0:00:07.6]} 56... Qxh3+ {[%clk 0:00:15.4]} 57. Kxh3 {[%clk 0:00:09.5]}
57... Bd4 {[%clk 0:00:16.7]} 58. Bc6 {[%clk 0:00:07.1]} 58... b4 {[%clk
0:00:17.1]} 59. Ba4 {[%clk 0:00:07.9]} 59... c5 {[%clk 0:00:16]} 60. Bb3 {[%clk
0:00:09.3]} 60... Ra8 {[%clk 0:00:16.8]} 61. Ra2 {[%clk 0:00:10.3]} 61... Rh8
{[%clk 0:00:06]} 62. Bd1 {[%clk 0:00:06.6]} 62... c4 {[%clk 0:00:05.5]} 63. Ra4
{[%clk 0:00:08.1]} 63... Rb8 {[%clk 0:00:03.2]} 64. Be2 {[%clk 0:00:07.8]} 64...
b3 {[%clk 0:00:03.7]} 65. Rxc4 {[%clk 0:00:08.7]} 65... b2 {[%clk 0:00:05.3]}
66. Rc7+ {[%clk 0:00:09.8]} 66... Kh6 {[%clk 0:00:06.5]} 67. Bd3 {[%clk
0:00:08.2]} 67... b1=Q {[%clk 0:00:07.1]} 68. Bxb1 {[%clk 0:00:09.7]} 68... Rb3+
{[%clk 0:00:08.3]} 69. Kg2 {[%clk 0:00:08.9]} 69... Rxb1 {[%clk 0:00:08.9]} 70.
Rc6 {[%clk 0:00:10.4]} 70... Rb2+ {[%clk 0:00:08.8]} 71. Kf3 {[%clk 0:00:11.5]}
71... Rb3+ {[%clk 0:00:09.6]} 72. Kg2 {[%clk 0:00:13.1]} 72... Rb6 {[%clk
0:00:11.5]} 73. Rc8 {[%clk 0:00:11.7]} 73... gxh5 {[%clk 0:00:11.9]} 74. Rh8+
{[%clk 0:00:12.9]} 74... Kg7 {[%clk 0:00:12.2]} 75. Rxh5 {[%clk 0:00:13.8]}
75... Kg6 {[%clk 0:00:13.4]} 76. Rf5 {[%clk 0:00:14.8]} 76... Rb2+ {[%clk
0:00:15.3]} 77. Kg3 {[%clk 0:00:15.7]} 77... Rb3+ {[%clk 0:00:16.2]} 78. Kg2
{[%clk 0:00:16]} 78... Re3 {[%clk 0:00:17.3]} 79. Rh5 {[%clk 0:00:15.9]} 79...
Rxe4 {[%clk 0:00:18]} 80. Kf3 {[%clk 0:00:17.6]} 80... Rf4+ {[%clk 0:00:19.4]}
81. Kg3 {[%clk 0:00:18.9]} 81... Bf2+ {[%clk 0:00:20.2]} 82. Kh3 {[%clk
0:00:19.8]} 82... e4 {[%clk 0:00:21.2]} 83. Rh8 {[%clk 0:00:19.5]} 83... e3
{[%clk 0:00:22]} 84. Re8 {[%clk 0:00:20.6]} 84... Kf7 {[%clk 0:00:22.9]} 85. Ra8
{[%clk 0:00:18.6]} 85... e2 {[%clk 0:00:23.8]} 86. g5 {[%clk 0:00:15.8]} 86...
e1=Q {[%clk 0:00:23.7]} 87. g6+ {[%clk 0:00:16.3]} 87... Kxg6 {[%clk 0:00:24.4]}
88. Rg8+ {[%clk 0:00:17.4]} 88... Kf7 {[%clk 0:00:25]} 89. Rg1 {[%clk
0:00:18.4]} 89... Rh4+ {[%clk 0:00:24.1]} 90. Kg2 {[%clk 0:00:19.2]} 90... Qxg1+
{[%clk 0:00:24.7]} 91. Kf3 {[%clk 0:00:20.6]} 91... Qg3+ {[%clk 0:00:25.2]} 92.
Ke2 {[%clk 0:00:22.1]} 92... Qe3+ {[%clk 0:00:26]} 93. Kf1 {[%clk 0:00:23.2]}
93... Rh1+ {[%clk 0:00:25.7]} 94. Kg2 {[%clk 0:00:24.8]} 94... Rg1+ {[%clk
0:00:26.7]} 95. Kh2 {[%clk 0:00:26]} 95... Qg3# {[%clk 0:00:28]} 0-1

[Event "*** MasterClass Titled Tuesday Blitz"]
[Site "Chess.com"]
[Date "2017.08.01"]
[Round "5"]
[White "jcibarra"]
[Black "maciek_92"]
[Result "1/2-1/2"]
[WhiteElo "2651"]
[BlackElo "2523"]
[TimeControl "180+2"]
[EndTime "14:09:04 PDT"]
[Termination "Game drawn by repetition"]

1. e4 {[%clk 0:03:01.9]} 1... c5 {[%clk 0:02:59.5]} 2. c3 {[%clk 0:03:01.7]}
2... Nf6 {[%clk 0:03:00]} 3. e5 {[%clk 0:03:02.5]} 3... Nd5 {[%clk 0:03:01.5]}
4. d4 {[%clk 0:03:03.9]} 4... cxd4 {[%clk 0:03:03.4]} 5. Nf3 {[%clk 0:03:05.5]}
5... e6 {[%clk 0:03:04.9]} 6. cxd4 {[%clk 0:03:06.5]} 6... Nc6 {[%clk
0:03:05.9]} 7. a3 {[%clk 0:03:07.3]} 7... d6 {[%clk 0:03:06.7]} 8. Bd3 {[%clk
0:03:08.3]} 8... Be7 {[%clk 0:03:03.1]} 9. O-O {[%clk 0:03:07.7]} 9... O-O
{[%clk 0:03:04.7]} 10. Qc2 {[%clk 0:03:08.6]} 10... g6 {[%clk 0:03:00.6]} 11.
Bh6 {[%clk 0:03:02.2]} 11... Re8 {[%clk 0:02:57.7]} 12. Qe2 {[%clk 0:03:01.5]}
12... Qb6 {[%clk 0:02:55.5]} 13. Rd1 {[%clk 0:02:51.7]} 13... Bd7 {[%clk
0:02:52.2]} 14. Nc3 {[%clk 0:02:49.1]} 14... dxe5 {[%clk 0:02:47.9]} 15. dxe5
{[%clk 0:02:45.5]} 15... Nxc3 {[%clk 0:02:45]} 16. bxc3 {[%clk 0:02:47.4]} 16...
Red8 {[%clk 0:02:45.3]} 17. h4 {[%clk 0:02:37]} 17... Qa5 {[%clk 0:02:33.8]} 18.
h5 {[%clk 0:02:31.8]} 18... Be8 {[%clk 0:02:35.1]} 19. hxg6 {[%clk 0:02:21.6]}
19... hxg6 {[%clk 0:02:37]} 20. Rab1 {[%clk 0:02:20.7]} 20... b6 {[%clk
0:02:37]} 21. c4 {[%clk 0:02:15.3]} 21... Qxa3 {[%clk 0:02:30.3]} 22. Bc1 {[%clk
0:01:52.1]} 22... Qc5 {[%clk 0:02:25.5]} 23. Be3 {[%clk 0:01:48.5]} 23... Qa3
{[%clk 0:02:20.8]} 24. Bc1 {[%clk 0:01:49.5]} 24... Qc5 {[%clk 0:02:05.4]} 25.
Bb2 {[%clk 0:01:44.1]} 25... Rd7 {[%clk 0:01:59.7]} 26. Be4 {[%clk 0:01:38.3]}
26... Rad8 {[%clk 0:01:57]} 27. Rxd7 {[%clk 0:01:35.9]} 27... Rxd7 {[%clk
0:01:55.9]} 28. Bc3 {[%clk 0:01:37.5]} 28... Rd8 {[%clk 0:01:51.7]} 29. g3
{[%clk 0:01:31.9]} 29... Qa3 {[%clk 0:01:42]} 30. Bb2 {[%clk 0:01:28]} 30... Qa2
{[%clk 0:01:39.4]} 31. Ra1 {[%clk 0:01:27.1]} 31... Qb3 {[%clk 0:01:36.2]} 32.
Bxc6 {[%clk 0:01:14.8]} 32... Bxc6 {[%clk 0:01:33.9]} 33. Nd4 {[%clk 0:01:16.7]}
33... Rxd4 {[%clk 0:01:28.6]} 34. Bxd4 {[%clk 0:01:18.6]} 34... Kg7 {[%clk
0:01:17.2]} 35. Re1 {[%clk 0:00:58.7]} 35... a5 {[%clk 0:01:07.2]} 36. Rc1
{[%clk 0:00:39.3]} 36... a4 {[%clk 0:01:03.5]} 37. Qd1 {[%clk 0:00:34.5]} 37...
Be4 {[%clk 0:00:48.7]} 38. Qxb3 {[%clk 0:00:33.3]} 38... axb3 {[%clk 0:00:50.6]}
39. Bb2 {[%clk 0:00:34.3]} 39... Bc2 {[%clk 0:00:48.3]} 40. f4 {[%clk
0:00:30.5]} 40... Bc5+ {[%clk 0:00:48.7]} 41. Kg2 {[%clk 0:00:31.1]} 41... g5
{[%clk 0:00:49]} 42. Kf3 {[%clk 0:00:30.5]} 42... Kg6 {[%clk 0:00:46]} 43. Rh1
{[%clk 0:00:29.5]} 43... Bd3 {[%clk 0:00:42.6]} 44. Rh8 {[%clk 0:00:26.4]} 44...
gxf4 {[%clk 0:00:40.7]} 45. gxf4 {[%clk 0:00:24]} 45... Kg7 {[%clk 0:00:40.4]}
46. Rh4 {[%clk 0:00:21.8]} 46... Kf8 {[%clk 0:00:32.7]} 47. Rh8+ {[%clk
0:00:22]} 47... Ke7 {[%clk 0:00:33.3]} 48. Ra8 {[%clk 0:00:19.5]} 48... Bxc4
{[%clk 0:00:33.6]} 49. Ra7+ {[%clk 0:00:20.6]} 49... Kf8 {[%clk 0:00:33.8]} 50.
Ke4 {[%clk 0:00:21.4]} 50... b5 {[%clk 0:00:26.9]} 51. Ra8+ {[%clk 0:00:22.3]}
51... Kg7 {[%clk 0:00:27.1]} 52. Ra1 {[%clk 0:00:24.2]} 52... Kg6 {[%clk
0:00:24.9]} 53. Rd1 {[%clk 0:00:19.8]} 53... Bf2 {[%clk 0:00:21.4]} 54. Rd7
{[%clk 0:00:16.8]} 54... Bc5 {[%clk 0:00:17]} 55. Rc7 {[%clk 0:00:14.5]} 55...
Bb4 {[%clk 0:00:16.5]} 56. Rd7 {[%clk 0:00:15.3]} 56... Bc5 {[%clk 0:00:15.5]}
57. Rc7 {[%clk 0:00:16.6]} 57... Bf2 {[%clk 0:00:16.3]} 58. Kf3 {[%clk
0:00:14.9]} 58... Bb6 {[%clk 0:00:16.1]} 59. Rd7 {[%clk 0:00:15.6]} 59... Bd5+
{[%clk 0:00:15.9]} 60. Kg4 {[%clk 0:00:16.8]} 60... Be4 {[%clk 0:00:16.3]} 61.
Kg3 {[%clk 0:00:15.6]} 61... Be3 {[%clk 0:00:16]} 62. Rd8 {[%clk 0:00:15.7]}
62... Kf5 {[%clk 0:00:15.7]} 63. Rf8 {[%clk 0:00:14.7]} 63... Bxf4+ {[%clk
0:00:17]} 64. Kf2 {[%clk 0:00:16.4]} 64... Kg6 {[%clk 0:00:18.2]} 65. Rg8+
{[%clk 0:00:17]} 65... Kf5 {[%clk 0:00:17.2]} 66. Rf8 {[%clk 0:00:18.9]} 66...
Bxe5 {[%clk 0:00:15.3]} 67. Rxf7+ {[%clk 0:00:16.9]} 67... Kg6 {[%clk
0:00:16.5]} 68. Bxe5 {[%clk 0:00:18.1]} 68... Kxf7 {[%clk 0:00:18.1]} 69. Ke3
{[%clk 0:00:19.7]} 69... Bd5 {[%clk 0:00:17.5]} 70. Kf4 {[%clk 0:00:21.2]} 70...
Ke7 {[%clk 0:00:18.5]} 71. Bb2 {[%clk 0:00:22.8]} 71... Kd6 {[%clk 0:00:19.4]}
72. Ba1 {[%clk 0:00:23.2]} 72... Kc5 {[%clk 0:00:20.8]} 73. Ke3 {[%clk
0:00:24.2]} 73... Bc4 {[%clk 0:00:20.8]} 74. Bb2 {[%clk 0:00:24.8]} 74... Kd5
{[%clk 0:00:21.6]} 75. Kf4 {[%clk 0:00:26]} 75... Bd3 {[%clk 0:00:21]} 76. Ke3
{[%clk 0:00:26.6]} 76... Bf5 {[%clk 0:00:22.1]} 77. Kf4 {[%clk 0:00:28]} 77...
Bh7 {[%clk 0:00:17.9]} 78. Ba1 {[%clk 0:00:28.6]} 78... Kc4 {[%clk 0:00:18.7]}
79. Ke3 {[%clk 0:00:29.4]} 79... b2 {[%clk 0:00:19]} 80. Bxb2 {[%clk 0:00:30.7]}
80... Kb3 {[%clk 0:00:20.2]} 81. Be5 {[%clk 0:00:27.2]} 81... Kc2 {[%clk
0:00:20.3]} 82. Bd6 {[%clk 0:00:28.2]} 82... Kc3 {[%clk 0:00:19.9]} 83. Be5+
{[%clk 0:00:26.8]} 83... Kc4 {[%clk 0:00:14.1]} 84. Bb2 {[%clk 0:00:24.6]} 84...
Kb3 {[%clk 0:00:12.3]} 85. Be5 {[%clk 0:00:25.3]} 85... b4 {[%clk 0:00:13.8]}
86. Kd2 {[%clk 0:00:25.1]} 86... Kc4 {[%clk 0:00:12.8]} 87. Ke3 {[%clk
0:00:26.1]} 87... Bf5 {[%clk 0:00:12.8]} 88. Bf6 {[%clk 0:00:25.8]} 88... Kb3
{[%clk 0:00:13.3]} 89. Kd2 {[%clk 0:00:27]} 89... Kc4 {[%clk 0:00:10.2]} 90. Ke3
{[%clk 0:00:28.2]} 90... Kd5 {[%clk 0:00:11.4]} 91. Kf4 {[%clk 0:00:29.2]} 91...
Bh7 {[%clk 0:00:12.2]} 92. Bg7 {[%clk 0:00:29.4]} 92... Kc5 {[%clk 0:00:13.1]}
93. Ke3 {[%clk 0:00:29.7]} 93... Kc4 {[%clk 0:00:13.9]} 94. Bf6 {[%clk 0:00:29]}
94... Kd5 {[%clk 0:00:12.5]} 95. Kf4 {[%clk 0:00:30.2]} 95... Bc2 {[%clk
0:00:11.2]} 96. Bg7 {[%clk 0:00:29.6]} 96... Kc4 {[%clk 0:00:12.7]} 97. Ke3
{[%clk 0:00:30.7]} 97... Kb3 {[%clk 0:00:14.2]} 98. Kd2 {[%clk 0:00:31.7]} 98...
Bf5 {[%clk 0:00:15.2]} 99. Bf6 {[%clk 0:00:32.7]} 99... Ka3 {[%clk 0:00:16]}
100. Be7 {[%clk 0:00:32.5]} 100... Kb3 {[%clk 0:00:16.7]} 101. Bf6 {[%clk
0:00:33.5]} 101... Ka2 {[%clk 0:00:16.8]} 102. Kc1 {[%clk 0:00:32.6]} 102... b3
{[%clk 0:00:16.6]} 103. Be5 {[%clk 0:00:33.3]} 103... Ka3 {[%clk 0:00:16.9]}
104. Bf6 {[%clk 0:00:32.2]} 104... Kb4 {[%clk 0:00:18.4]} 105. Kd2 {[%clk
0:00:33]} 105... Kc5 {[%clk 0:00:19.8]} 106. Ke3 {[%clk 0:00:34.2]} 106... Kc4
{[%clk 0:00:19.7]} 107. Bb2 {[%clk 0:00:33.1]} 107... Kd5 {[%clk 0:00:18.6]}
108. Kf4 {[%clk 0:00:34.4]} 108... Kc4 {[%clk 0:00:20]} 109. Ke3 {[%clk
0:00:35.7]} 109... Kd5 {[%clk 0:00:21.5]} 110. Kf4 {[%clk 0:00:37.2]} 110... Kc4
{[%clk 0:00:23]} 111. Ke3 {[%clk 0:00:38.7]} 111... Kd5 {[%clk 0:00:24.3]} 112.
Kf4 {[%clk 0:00:40.1]} 1/2-1/2